fUSD/lending_fUSD_20260610
["ID","MTS","AMOUNT","RATE_DAILY","PERIOD"]
[424716956,1781086240000,-404.23419248,0.00012297,2]
[424716961,1781086240000,-500.0,0.00012297,2]
[424716959,1781086240000,-500.0,0.00012297,2]
[424716958,1781086240000,-276.71394675,0.00012297,2]
[424716969,1781086240000,-786.98622168,0.00012297,2]
[424716962,1781086240000,-151.45895402,0.00012297,2]
[424716964,1781086240000,-786.98622168,0.00012297,2]
[424716973,1781086240000,-786.98622168,0.00012297,2]
[424716972,1781086240000,-786.98622168,0.00012297,2]
[424716965,1781086240000,-786.98622168,0.00012297,2]
[424716966,1781086240000,-786.98622168,0.00012297,2]
[424716967,1781086240000,-786.98622168,0.00012297,2]
[424716970,1781086240000,-786.98622168,0.00012297,2]
[424716971,1781086240000,-786.98622168,0.00012297,2]
[424716968,1781086240000,-786.98622168,0.00012297,2]
[424716963,1781086240000,-256.43682364,0.00012297,2]
[424717037,1781086241000,-770.78356418,0.00012297,2]
[424717051,1781086241000,-975.32204683,0.00012297,2]
[424717053,1781086241000,-265471.5099,0.00012298,2]
[424717057,1781086241000,-166.68,0.00012547,2]
[424717042,1781086241000,-770.78356418,0.00012297,2]
[424717040,1781086241000,-770.78356418,0.00012297,2]
[424717038,1781086241000,-770.78356418,0.00012297,2]
[424717039,1781086241000,-770.78356418,0.00012297,2]
[424717050,1781086241000,-975.32204683,0.00012297,2]
[424717036,1781086241000,-770.78356418,0.00012297,2]
[424717041,1781086241000,-770.78356418,0.00012297,2]
[424717052,1781086241000,-255.82010105,0.00012298,2]
[424717047,1781086241000,-770.78356418,0.00012297,2]
[424717060,1781086241000,-1000.0,0.000128,2]
[424717056,1781086241000,-433.0,0.00012408,2]
[424717054,1781086241000,-162.7,0.00012323,2]
[424717058,1781086241000,-162.7,0.00012683,2]
[424717049,1781086241000,-975.32204683,0.00012297,2]
[424717044,1781086241000,-770.78356418,0.00012297,2]
[424717046,1781086241000,-770.78356418,0.00012297,2]
[424717048,1781086241000,-975.32204683,0.00012297,2]
[424717055,1781086241000,-157.56,0.00012329,2]
[424717045,1781086241000,-770.78356418,0.00012297,2]
[424717059,1781086241000,-317.20286879,0.00012709,2]
[424717062,1781086241000,-1000.0,0.000128,4]
[424717032,1781086241000,-770.78356418,0.00012297,2]
[424717043,1781086241000,-770.78356418,0.00012297,2]
[424717035,1781086241000,-770.78356418,0.00012297,2]
[424717005,1781086241000,-786.98622168,0.00012297,2]
[424717030,1781086241000,-770.78356418,0.00012297,2]
[424717061,1781086241000,-1000.0,0.000128,3]
[424717006,1781086241000,-786.98622168,0.00012297,2]
[424717008,1781086241000,-786.98622168,0.00012297,2]
[424717007,1781086241000,-786.98622168,0.00012297,2]
[424717009,1781086241000,-786.98622168,0.00012297,2]
[424717010,1781086241000,-786.98622168,0.00012297,2]
[424717012,1781086241000,-786.98622168,0.00012297,2]
[424717011,1781086241000,-786.98622168,0.00012297,2]
[424717013,1781086241000,-786.98622168,0.00012297,2]
[424717017,1781086241000,-786.98622168,0.00012297,2]
[424717016,1781086241000,-786.98622168,0.00012297,2]
[424717015,1781086241000,-786.98622168,0.00012297,2]
[424717014,1781086241000,-786.98622168,0.00012297,2]
[424717018,1781086241000,-770.78356418,0.00012297,2]
[424717019,1781086241000,-770.78356418,0.00012297,2]
[424717022,1781086241000,-770.78356418,0.00012297,2]
[424717021,1781086241000,-770.78356418,0.00012297,2]
[424717020,1781086241000,-770.78356418,0.00012297,2]
[424717023,1781086241000,-770.78356418,0.00012297,2]
[424717025,1781086241000,-770.78356418,0.00012297,2]
[424717024,1781086241000,-770.78356418,0.00012297,2]
[424717027,1781086241000,-770.78356418,0.00012297,2]
[424717026,1781086241000,-770.78356418,0.00012297,2]
[424717028,1781086241000,-770.78356418,0.00012297,2]
[424717029,1781086241000,-770.78356418,0.00012297,2]
[424717034,1781086241000,-770.78356418,0.00012297,2]
[424717031,1781086241000,-770.78356418,0.00012297,2]
[424717033,1781086241000,-770.78356418,0.00012297,2]
[424717064,1781086241000,-22236.08,0.0001288,2]
[424717106,1781086241000,-2000.0,0.0001405,2]
[424717065,1781086241000,-22236.08,0.0001288,2]
[424717101,1781086241000,-300.51459543,0.00013948,2]
[424717097,1781086241000,-1352.77094979,0.00013885,2]
[424717098,1781086241000,-300.51459543,0.00013888,2]
[424717100,1781086241000,-8542.71650429,0.00013903,2]
[424717099,1781086241000,-159.0,0.000139,2]
[424717102,1781086241000,-152.0,0.00013963,2]
[424717103,1781086241000,-250.0,0.00014,2]
[424717104,1781086241000,-300.51459543,0.00014004,2]
[424717105,1781086241000,-300.51459543,0.00014015,2]
[424717107,1781086241000,-500.0,0.0001405,2]
[424717109,1781086241000,-1500.0,0.00014088,2]
[424717108,1781086241000,-300.51459543,0.00014056,2]
[424717111,1781086241000,-300.51459543,0.00014105,2]
[424717114,1781086241000,-300.51459543,0.00014151,2]
[424717110,1781086241000,-152.0,0.00014093,2]
[424717112,1781086241000,-500.0,0.0001411,2]
[424717113,1781086241000,-300.51459543,0.00014133,2]
[424717116,1781086241000,-300.51459543,0.00014195,2]
[424717117,1781086241000,-300.51459543,0.00014237,2]
[424717115,1781086241000,-500.0,0.00014154,2]
[424717119,1781086241000,-300.51459543,0.00014278,2]
[424717118,1781086241000,-300.51459543,0.00014237,2]
[424717121,1781086241000,-300.51459543,0.00014316,2]
[424717123,1781086241000,-300.51459543,0.00014332,2]
[424717122,1781086241000,-4936.0,0.00014331,5]
[424717124,1781086241000,-300.51459543,0.00014354,2]
[424717063,1781086241000,-356.02835984,0.00012848,2]
[424717096,1781086241000,-300.51459543,0.00013875,2]
[424717092,1781086241000,-644.16366833,0.00013699,2]
[424717120,1781086241000,-160.04,0.000143,2]
[424717091,1781086241000,-500.0,0.00013699,2]
[424717066,1781086241000,-227.0,0.00012978,2]
[424717093,1781086241000,-224.0,0.00013741,2]
[424717068,1781086241000,-226.0,0.00012978,2]
[424717072,1781086241000,-165.99,0.00013177,2]
[424717067,1781086241000,-227.0,0.00012978,2]
[424717070,1781086241000,-1074.23,0.00013113,2]
[424717071,1781086241000,-162.49,0.00013133,2]
[424717073,1781086241000,-300.51459543,0.00013251,2]
[424717074,1781086241000,-300.51459543,0.00013251,2]
[424717075,1781086241000,-2000.0,0.00013277,2]
[424717077,1781086241000,-736.0,0.00013631,2]
[424717076,1781086241000,-300.51459543,0.00013536,2]
[424717078,1781086241000,-300.51459543,0.00013654,2]
[424717069,1781086241000,-444.5910298,0.00013,5]
[424717082,1781086241000,-500.0,0.00013698,2]
[424717094,1781086241000,-300.51459543,0.00013744,2]
[424717079,1781086241000,-300.51459543,0.00013692,2]
[424717095,1781086241000,-300.51459543,0.00013821,2]
[424717090,1781086241000,-500.0,0.00013699,2]
[424717088,1781086241000,-200.0,0.00013699,2]
[424717089,1781086241000,-500.0,0.00013699,2]
[424717086,1781086241000,-500.0,0.00013698,2]
[424717087,1781086241000,-2500.0,0.00013699,2]
[424717084,1781086241000,-647.74813864,0.00013698,2]
[424717083,1781086241000,-500.28276553,0.00013698,2]
[424717081,1781086241000,-500.0,0.00013698,2]
[424717080,1781086241000,-500.0,0.00013698,2]
[424717085,1781086241000,-500.0,0.00013698,2]
[424717150,1781086242000,-165.425,0.00014471,2]
[424717153,1781086242000,-300.51459543,0.00014492,2]
[424717160,1781086242000,-202.16,0.0001458,2]
[424717154,1781086242000,-300.51459543,0.00014499,2]
[424717152,1781086242000,-1228.524,0.00014471,2]
[424717156,1781086242000,-300.51459543,0.00014524,2]
[424717155,1781086242000,-159.0,0.000145,2]
[424717159,1781086242000,-199.08,0.0001458,2]
[424717164,1781086242000,-2000.0,0.000146,2]
[424717157,1781086242000,-300.51459543,0.00014556,2]
[424717162,1781086242000,-328.957318,0.000146,2]
[424717163,1781086242000,-986.911956,0.000146,2]
[424717161,1781086242000,-300.51459543,0.00014587,2]
[424717166,1781086242000,-200.0,0.00014615,2]
[424717165,1781086242000,-2000.0,0.00014605,2]
[424717168,1781086242000,-166.68,0.00014617,2]
[424717149,1781086242000,-1358.0,0.00014471,2]
[424717167,1781086242000,-300.51459543,0.00014617,2]
[424717158,1781086242000,-300.51459543,0.00014574,2]
[424717147,1781086242000,-189.0,0.00014471,2]
[424717132,1781086242000,-278.0,0.00014471,2]
[424717146,1781086242000,-247.654,0.00014471,2]
[424717125,1781086242000,-300.51459543,0.0001439,2]
[424717126,1781086242000,-300.51459543,0.00014418,2]
[424717127,1781086242000,-1074.23,0.00014425,2]
[424717130,1781086242000,-300.51459543,0.00014459,2]
[424717128,1781086242000,-300.51459543,0.00014425,2]
[424717129,1781086242000,-162.49,0.00014446,2]
[424717131,1781086242000,-300.0,0.0001447,2]
[424717133,1781086242000,-250.0,0.00014471,2]
[424717134,1781086242000,-200.0,0.00014471,2]
[424717143,1781086242000,-195.316,0.00014471,2]
[424717169,1781086242000,-1555.5,0.00014636,2]
[424717135,1781086242000,-208.969,0.00014471,2]
[424717138,1781086242000,-247.969,0.00014471,2]
[424717139,1781086242000,-250.0,0.00014471,2]
[424717141,1781086242000,-167.63,0.00014471,2]
[424717142,1781086242000,-250.0,0.00014471,2]
[424717140,1781086242000,-242.103,0.00014471,2]
[424717144,1781086242000,-250.0,0.00014471,2]
[424717145,1781086242000,-167.528,0.00014471,2]
[424717148,1781086242000,-3556.0,0.00014471,2]
[424717136,1781086242000,-220.0,0.00014471,2]
[424717171,1781086242000,-300.51459543,0.00014646,2]
[424717137,1781086242000,-250.0,0.00014471,2]
[424717170,1781086242000,-300.51459543,0.00014646,2]
[424717207,1781086242000,-300.0,0.00014899,2]
[424717209,1781086242000,-500.0,0.00014899,2]
[424717213,1781086242000,-500.0,0.00014899,2]
[424717211,1781086242000,-500.0,0.00014899,2]
[424717215,1781086242000,-500.0,0.00014899,2]
[424717219,1781086242000,-616.30777431,0.00014899,2]
[424717217,1781086242000,-500.0,0.00014899,2]
[424717218,1781086242000,-500.0,0.00014899,2]
[424717221,1781086242000,-500.0,0.00014899,2]
[424717208,1781086242000,-300.0,0.00014899,2]
[424717223,1781086242000,-500.0,0.00014899,2]
[424717226,1781086242000,-500.0,0.00014899,2]
[424717225,1781086242000,-500.0,0.00014899,2]
[424717227,1781086242000,-500.0,0.00014899,2]
[424717229,1781086242000,-6161.0,0.000149,5]
[424717228,1781086242000,-500.0,0.00014899,2]
[424717230,1781086242000,-250.0,0.000149,2]
[424717232,1781086242000,-137188.29846651,0.000149,2]
[424717231,1781086242000,-2000.0,0.000149,2]
[424717173,1781086242000,-300.0,0.00014716,2]
[424717224,1781086242000,-500.0,0.00014899,2]
[424717206,1781086242000,-300.0,0.00014899,2]
[424717151,1781086242000,-401.0,0.00014471,2]
[424717201,1781086242000,-300.0,0.00014899,2]
[424717172,1781086242000,-8560.89183724,0.000147,2]
[424717204,1781086242000,-300.0,0.00014899,2]
[424717174,1781086242000,-356.02835984,0.00014776,2]
[424717175,1781086242000,-868.0,0.000148,2]
[424717177,1781086242000,-2000.0,0.000148,2]
[424717182,1781086242000,-1214.0,0.00014836,2]
[424717181,1781086242000,-6075.0,0.00014836,2]
[424717183,1781086242000,-3643.0,0.00014836,2]
[424717184,1781086242000,-151.0,0.0001487,2]
[424717186,1781086242000,-200.0,0.00014879,2]
[424717179,1781086242000,-340.7,0.00014807,2]
[424717187,1781086242000,-256.54402329,0.0001489,2]
[424717192,1781086242000,-151.0,0.00014897,2]
[424717194,1781086242000,-300.0,0.00014899,2]
[424717200,1781086242000,-666.0,0.00014899,2]
[424717195,1781086242000,-300.0,0.00014899,2]
[424717202,1781086242000,-300.0,0.00014899,2]
[424717196,1781086242000,-300.0,0.00014899,2]
[424717197,1781086242000,-666.0,0.00014899,2]
[424717198,1781086242000,-300.0,0.00014899,2]
[424717189,1781086242000,-500.0,0.00014896,2]
[424717234,1781086243000,-118.29561647,9.22e-05,2]
[424717233,1781086243000,-150.0,9.129e-05,2]
[424717294,1781086246000,-151.0,0.000149,2]
[424717307,1781086246000,-160.0,0.000149,2]
[424717289,1781086246000,-151.0,0.000149,2]
[424717296,1781086246000,-151.0,0.000149,2]
[424717298,1781086246000,-151.0,0.000149,2]
[424717309,1781086246000,-151.0,0.000149,2]
[424717300,1781086246000,-444.19003234,0.000149,2]
[424717311,1781086246000,-151.0,0.000149,2]
[424717313,1781086246000,-151.0,0.000149,2]
[424717291,1781086246000,-241.594195,0.000149,2]
[424717305,1781086246000,-2330.5233534,0.000149,2]
[424717287,1781086246000,-926.362251,0.000149,2]
[424717254,1781086246000,-41.02476405,9.401e-05,2]
[424717283,1781086246000,-926.362251,0.000149,2]
[424717280,1781086246000,-926.362251,0.000149,2]
[424717278,1781086246000,-159.0,0.000149,2]
[424717276,1781086246000,-604159.6641887,0.000149,2]
[424717263,1781086246000,-758340.96882563,0.000149,2]
[424717266,1781086246000,-311.06851916,0.000149,2]
[424717261,1781086246000,-155.16755486,0.000149,2]
[424717258,1781086246000,-933.0,0.00014836,2]
[424717256,1781086246000,-950.942,0.00011836,2]
[424717315,1781086246000,-332.43807807,0.00014942,2]
[424717250,1781086246000,-154.97523595,9.401e-05,2]
[424717248,1781086246000,-150.0,9.31e-05,2]
[424717246,1781086246000,-31.70438353,9.22e-05,2]
[424717285,1781086246000,-926.362251,0.000149,2]
[424717318,1781086246000,-162.09715988,0.00014962,2]
[424717302,1781086246000,-503.03433468,0.000149,2]
[424717320,1781086246000,-500.0,0.0001497,2]
[424717331,1781086246000,-155.87880589,0.00014997,2]
[424717382,1781086246000,-666.0,0.00014999,2]
[424717373,1781086246000,-300.0,0.00014999,2]
[424717378,1781086246000,-300.0,0.00014999,2]
[424717376,1781086246000,-666.0,0.00014999,2]
[424717371,1781086246000,-500.0,0.00014999,2]
[424717380,1781086246000,-300.0,0.00014999,2]
[424717368,1781086246000,-500.0,0.00014999,2]
[424717364,1781086246000,-500.0,0.00014999,2]
[424717366,1781086246000,-500.0,0.00014999,2]
[424717362,1781086246000,-500.0,0.00014999,2]
[424717359,1781086246000,-500.0,0.00014999,2]
[424717357,1781086246000,-500.0,0.00014999,2]
[424717333,1781086246000,-151.0,0.00014997,2]
[424717353,1781086246000,-250.0,0.00014999,2]
[424717355,1781086246000,-500.0,0.00014999,2]
[424717322,1781086246000,-500.47668198,0.0001497,2]
[424717324,1781086246000,-1348.07301813,0.0001497,2]
[424717326,1781086246000,-1252.0,0.00014986,2]
[424717335,1781086246000,-300.0,0.00014998,2]
[424717337,1781086246000,-300.0,0.00014998,2]
[424717329,1781086246000,-256.54402329,0.0001499,2]
[424717340,1781086246000,-300.0,0.00014998,2]
[424717342,1781086246000,-500.0,0.00014999,2]
[424717346,1781086246000,-500.0,0.00014999,2]
[424717348,1781086246000,-500.0,0.00014999,2]
[424717350,1781086246000,-350.30770578,0.00014999,2]
[424717344,1781086246000,-294.89533016,0.00014999,2]
[424717433,1781086247000,-2000.0,0.00015,2]
[424717425,1781086247000,-2000.0,0.00015,2]
[424717423,1781086247000,-2000.0,0.00015,2]
[424717421,1781086247000,-2000.0,0.00015,2]
[424717427,1781086247000,-2000.0,0.00015,2]
[424717438,1781086247000,-2000.0,0.00015,2]
[424717458,1781086247000,-219.43,0.00015,2]
[424717440,1781086247000,-2000.0,0.00015,2]
[424717442,1781086247000,-2000.0,0.00015,2]
[424717445,1781086247000,-2000.0,0.00015,2]
[424717455,1781086247000,-2000.0,0.00015,2]
[424717418,1781086247000,-2000.0,0.00015,2]
[424717449,1781086247000,-2000.0,0.00015,2]
[424717447,1781086247000,-2000.0,0.00015,2]
[424717436,1781086247000,-2000.0,0.00015,2]
[424717429,1781086247000,-2000.0,0.00015,2]
[424717400,1781086247000,-2000.0,0.00015,2]
[424717416,1781086247000,-315.32,0.00015,2]
[424717451,1781086247000,-2000.0,0.00015,2]
[424717384,1781086247000,-300.0,0.00014999,2]
[424717393,1781086247000,-300.0,0.00014999,2]
[424717387,1781086247000,-300.0,0.00014999,2]
[424717389,1781086247000,-300.0,0.00014999,2]
[424717395,1781086247000,-329.80321897,0.00015,2]
[424717431,1781086247000,-2000.0,0.00015,2]
[424717404,1781086247000,-2000.0,0.00015,2]
[424717397,1781086247000,-2000.0,0.00015,2]
[424717402,1781086247000,-2000.0,0.00015,2]
[424717410,1781086247000,-2000.0,0.00015,2]
[424717408,1781086247000,-2000.0,0.00015,2]
[424717412,1781086247000,-2000.0,0.00015,2]
[424717414,1781086247000,-2000.0,0.00015,2]
[424717406,1781086247000,-2000.0,0.00015,2]
[424717391,1781086247000,-300.0,0.00014999,2]
[424717460,1781086247000,-2000.0,0.00015,2]
[424717461,1781086247000,-2000.0,0.00015,2]
[424717497,1781086247000,-3000.0,0.00015,2]
[424717499,1781086247000,-3000.0,0.00015,2]
[424717501,1781086247000,-3000.0,0.00015,2]
[424717505,1781086247000,-3000.0,0.00015,2]
[424717503,1781086247000,-3000.0,0.00015,2]
[424717517,1781086247000,-1964.04,0.00015,2]
[424717493,1781086247000,-1828.38,0.00015,2]
[424717506,1781086247000,-1856.18,0.00015,2]
[424717514,1781086247000,-3000.0,0.00015,2]
[424717513,1781086247000,-2273.41,0.00015,2]
[424717518,1781086247000,-174519.63845485,0.00015,2]
[424717523,1781086247000,-1530.8,0.00015,2]
[424717525,1781086247000,-1078.0991,0.00015,2]
[424717453,1781086247000,-2000.0,0.00015,2]
[424717508,1781086247000,-3000.0,0.00015,2]
[424717491,1781086247000,-1047.3,0.00015,2]
[424717510,1781086247000,-3000.0,0.00015,2]
[424717489,1781086247000,-2000.0,0.00015,2]
[424717464,1781086247000,-2000.0,0.00015,2]
[424717465,1781086247000,-2000.0,0.00015,2]
[424717469,1781086247000,-2000.0,0.00015,2]
[424717467,1781086247000,-2000.0,0.00015,2]
[424717476,1781086247000,-2000.0,0.00015,2]
[424717462,1781086247000,-2000.0,0.00015,2]
[424717470,1781086247000,-1091.43,0.00015,2]
[424717472,1781086247000,-2000.0,0.00015,2]
[424717474,1781086247000,-2000.0,0.00015,2]
[424717477,1781086247000,-2000.0,0.00015,2]
[424717481,1781086247000,-2000.0,0.00015,2]
[424717483,1781086247000,-2000.0,0.00015,2]
[424717479,1781086247000,-1054.85,0.00015,2]
[424717485,1781086247000,-2000.0,0.00015,2]
[424717487,1781086247000,-1313.51,0.00015,2]
[424717495,1781086247000,-3000.0,0.00015,2]
[424718299,1781086296000,283.96,0.00027778,120]
[424718300,1781086762000,300.0,0.00029863,120]
[424718302,1781086762000,300.0,0.00029863,120]
[424718301,1781086762000,300.0,0.00029863,120]
[424718305,1781086763000,400.0,0.00029863,120]
[424718304,1781086763000,300.0,0.00029863,120]
[424718303,1781086763000,300.0,0.00029863,120]
[424718319,1781087431000,-471.11305984,9.356e-05,2]
[424718318,1781087431000,-326.48139343,9.356e-05,2]
[424718316,1781087431000,-307.16299998,9.313e-05,2]
[424718317,1781087431000,-673.51860657,9.356e-05,2]
[424718314,1781087431000,-150.0,9.284e-05,2]
[424718315,1781087431000,-142.97700002,9.313e-05,2]
[424718327,1781087432000,-317.78155697,9.576e-05,2]
[424718328,1781087432000,-461.94844303,9.576e-05,2]
[424718326,1781087432000,-150.0,9.571e-05,2]
[424718321,1781087432000,-420.09178504,9.364e-05,2]
[424718329,1781087432000,-160.0,9.587e-05,2]
[424718323,1781087432000,-219.22088261,9.371e-05,2]
[424718320,1781087432000,-480.64694016,9.356e-05,2]
[424718325,1781087432000,-1051.38,9.565e-05,2]
[424718322,1781087432000,-65.7311486,9.371e-05,2]
[424718330,1781087432000,-20.34977785,9.682e-05,2]
[424718324,1781087432000,-163.19,9.472e-05,2]
[424718333,1781087432000,-150.0,9.867e-05,2]
[424718334,1781087432000,-434.41281138,9.972e-05,2]
[424718336,1781087432000,-150.0,9.972e-05,2]
[424718331,1781087432000,-399.74200718,9.682e-05,2]
[424718332,1781087432000,-482.6807,9.767e-05,2]
[424718337,1781087432000,-1653.18998882,9.973e-05,2]
[424718335,1781087432000,-1565.58718862,9.972e-05,2]
[424718339,1781087432000,-7112.87695203,9.973e-05,2]
[424718338,1781087432000,-378.71365915,9.973e-05,2]
[424718343,1781087432000,-8201.57314153,9.973e-05,2]
[424718341,1781087432000,-42235.12324967,9.973e-05,2]
[424718346,1781087432000,-21476.29411305,9.973e-05,2]
[424718354,1781087438000,-1007.20313469,9.973e-05,2]
[424718355,1781087438000,-3653.7485377,9.973e-05,2]
[424718356,1781087438000,-11742.95849212,9.973e-05,2]
[424718357,1781087438000,-500.22722923,9.973e-05,2]
[424718372,1781087440000,-488.32685115,9.973e-05,2]
[424718368,1781087440000,-19508.80765218,9.973e-05,2]
[424718369,1781087440000,-3720.49673213,9.973e-05,2]
[424718370,1781087440000,-1591.98853866,9.973e-05,2]
[424718371,1781087440000,-300.0,9.973e-05,2]
[424718367,1781087440000,-3150.0,9.973e-05,2]
[424718366,1781087440000,-733839.09620313,9.973e-05,2]
[424718383,1781087442000,-521.6605026,9.973e-05,2]
[424718385,1781087443000,-47600.71326958,9.973e-05,2]
[424718384,1781087443000,-600461.78235258,9.973e-05,2]
[424718386,1781087443000,-2500.0,9.973e-05,2]
[424718393,1781087443000,-205558.54185082,0.00010073,2]
[424718394,1781087443000,-11363.16236215,0.00010073,2]
[424718389,1781087443000,-420.09178503,0.0001,2]
[424718391,1781087443000,-277.38263207,0.0001,2]
[424718387,1781087443000,-163.65,0.0001,2]
[424718423,1781087446000,-1051.38,0.0001076,2]
[424718425,1781087446000,-1488.2399345,0.000109,2]
[424718435,1781087446000,-166.66,0.00011178,2]
[424718427,1781087446000,-166.66,0.00010959,2]
[424718426,1781087446000,-166.66,0.0001092,2]
[424718424,1781087446000,-38013.649702,0.00010781,2]
[424718428,1781087446000,-255.0,0.00010969,2]
[424718431,1781087446000,-228.61,0.00010989,2]
[424718432,1781087446000,-166.66,0.00011068,2]
[424718430,1781087446000,-175.58,0.00010989,2]
[424718434,1781087446000,-1352.77094979,0.00011099,2]
[424718436,1781087446000,-166.66,0.00011258,2]
[424718442,1781087446000,-166.66,0.00011596,2]
[424718438,1781087446000,-8542.71650429,0.00011297,2]
[424718439,1781087446000,-1352.77094979,0.00011298,2]
[424718441,1781087446000,-166.66,0.00011507,2]
[424718420,1781087446000,-6498.94,0.00010445,2]
[424718433,1781087446000,-8542.71650432,0.00011099,2]
[424718422,1781087446000,-163.19,0.00010656,2]
[424718405,1781087446000,-151.45895402,0.00010165,2]
[424718419,1781087446000,-187.84,0.00010403,2]
[424718440,1781087446000,-166.66,0.00011397,2]
[424718402,1781087446000,-419.27752317,0.00010073,2]
[424718403,1781087446000,-48130.52816386,0.00010073,2]
[424718407,1781087446000,-276.71394675,0.00010165,2]
[424718411,1781087446000,-250.0,0.00010213,2]
[424718404,1781087446000,-210.66,0.00010128,2]
[424718406,1781087446000,-500.0,0.00010165,2]
[424718408,1781087446000,-404.23419248,0.00010165,2]
[424718410,1781087446000,-255.82010105,0.00010173,2]
[424718409,1781087446000,-151.0,0.0001017,2]
[424718412,1781087446000,-500.0,0.00010213,2]
[424718414,1781087446000,-250.0,0.00010213,2]
[424718415,1781087446000,-215.92376884,0.00010234,2]
[424718416,1781087446000,-166.66,0.00010244,2]
[424718417,1781087446000,-340.7,0.00010298,2]
[424718413,1781087446000,-504.41335218,0.00010213,2]
[424718421,1781087446000,-166.66,0.00010582,2]
[424718418,1781087446000,-209.74,0.00010403,2]
[424718443,1781087446000,-163.19,0.0001184,2]
[424718429,1781087446000,-1028.16182288,0.00010979,2]
[424718444,1781087446000,-166.66,0.00011935,2]
[424718468,1781087446000,-1276.177,0.00012432,2]
[424718470,1781087446000,-1228.524,0.00012432,2]
[424718467,1781087446000,-300.0,0.00012431,2]
[424718472,1781087446000,-8542.71650429,0.00012623,2]
[424718473,1781087446000,-1352.77094979,0.00012623,2]
[424718474,1781087446000,-150.0,0.00012745,2]
[424718476,1781087446000,-13331.05,0.00012855,2]
[424718475,1781087446000,-572.15,0.00012855,2]
[424718469,1781087446000,-401.0,0.00012432,2]
[424718477,1781087446000,-2000.0,0.00012855,2]
[424718479,1781087446000,-539.0,0.00013068,2]
[424718480,1781087446000,-500.0,0.00013096,2]
[424718483,1781087446000,-736.0,0.00013272,2]
[424718482,1781087446000,-300.51459543,0.00013251,2]
[424718485,1781087446000,-4895.0,0.00013469,5]
[424718487,1781087446000,-300.51459543,0.00013585,2]
[424718484,1781087446000,-6370.0,0.00013469,5]
[424718437,1781087446000,-166.66,0.00011288,2]
[424718481,1781087446000,-1051.38,0.00013151,2]
[424718471,1781087446000,-1358.0,0.00012432,2]
[424718478,1781087446000,-163.19,0.00013024,2]
[424718466,1781087446000,-300.0,0.00012431,2]
[424718445,1781087446000,-1051.38,0.00011956,2]
[424718465,1781087446000,-666.0,0.00012431,2]
[424718446,1781087446000,-151.0,0.00012,2]
[424718447,1781087446000,-151.0,0.00012,2]
[424718451,1781087446000,-433.0,0.00012066,2]
[424718452,1781087446000,-336.27396007,0.00012068,2]
[424718448,1781087446000,-151.0,0.00012,2]
[424718449,1781087446000,-151.0,0.00012,2]
[424718455,1781087446000,-252.48395159,0.00012068,2]
[424718453,1781087446000,-245.05795302,0.00012068,2]
[424718457,1781087446000,-227.0,0.00012198,2]
[424718460,1781087446000,-13220.7821,0.00012198,2]
[424718486,1781087446000,-300.51459543,0.00013487,2]
[424718462,1781087446000,-157.57,0.00012329,2]
[424718461,1781087446000,-495.47282576,0.00012256,2]
[424718459,1781087446000,-2000.0,0.00012198,2]
[424718464,1781087446000,-300.0,0.00012431,2]
[424718458,1781087446000,-227.0,0.00012198,2]
[424718463,1781087446000,-300.0,0.00012431,2]
[424718523,1781087447000,-150.99,0.00013699,2]
[424718525,1781087447000,-300.51459543,0.00013723,2]
[424718524,1781087447000,-644.16366833,0.00013699,2]
[424718517,1781087447000,-500.0,0.00013698,2]